[Event "FAI-ch Open 2021"]
[Site "Klaksvik"]
[Date "2021.03.29"]
[Round "3.6"]
[White "Funningstovu, Brandur I"]
[Black "Morkore, Rogvi"]
[Result "0-1"]
[ECO "D05"]
[WhiteElo "1311"]
[BlackElo "1685"]
[Annotator "NA RC"]
[PlyCount "78"]
[EventDate "2021.03.27"]
[EventType "swiss"]
[EventCountry "FAI"]
[SourceTitle "playchess.com"]
[Source "ChessBase"]
[SourceQuality "1"]
[TimeControl "40/5400+30:900+30"]

1. d4 {[%emt 0:00:00]} Nf6 {[%emt 0:00:00]} 2. Nf3 {[%emt 0:00:00]} d5 {[%emt 0:00:02]} 3. e3 {[%emt 0:00:03]} e6 {[%emt 0:00:52]} 4. b3 {[%emt 0:01:29]} Bd6 {[%emt 0:00:26]} 5. Bb2 {[%emt 0:00:38]} O-O {[%emt 0:01:19]} 6. Bd3 {[%emt 0:00:17]} b6 {[%emt 0:00:59]} 7. Nbd2 {[%emt 0:00:42]} Bb7 {[%emt 0:00:14]} 8. O-O {[%emt 0:02:19]} Nbd7 {[%emt 0:00:34]} 9. c4 {[%emt 0:00:50]} Qe7 {[%emt 0:06:13]} 10. a3 {[%emt 0:01:04]} a5 {[%emt 0:00:31]} 11. h3 {[%emt 0:02:06]} e5 {[%emt 0:05:01]} 12. dxe5 {[%emt 0:05:54]} Nxe5 {[%emt 0:00:22]} 13. Be2 {[%emt 0:00:26]} dxc4 {[%emt 0:02:03]} 14. Nxe5 {[%emt 0:01:23]} Bxe5 {[%emt 0:00:25]} 15. Bxe5 {[%emt 0:00:25]} Qxe5 {[%emt 0:00:08]} 16. Nxc4 {[%emt 0:00:26]} Qe6 {[%emt 0:05:16]} 17. Bf3 {[%emt 0:02:07]} Rad8 {[%emt 0:01:42]} 18. Qe2 {[%emt 0:01:05]} Ba6 {[%emt 0:04:23]} 19. Qc2 {[%emt 0:00:57]} Bxc4 {[%emt 0:07:37]} 20. bxc4 {[%emt 0:02:01]} Nd7 {[%emt 0:06:28]} 21. Rfd1 {[%emt 0:01:24]} Nc5 {[%emt 0:01:34]} 22. Rd4 {[%emt 0:03:07]} Qf6 {[%emt 0:05:58]} 23. Rad1 {[%emt 0:01:30]} Ne6 {[%emt 0:02:05]} 24. Rd5 {[%emt 0:04:00]} Qe7 {[%emt 0:05:42]} 25. Bg4 {[%emt 0:13:11]} Nc5 {[%emt 0:02:44]} 26. Qc3 {[%emt 0:06:20]} Rxd5 {[%emt 0:08:33]} 27. cxd5 {[%emt 0:02:12]} Rd8 {[%emt 0:00:45]} 28. Bf3 {[%emt 0:01:08]} g6 {[%emt 0:04:48]} 29. Rd4 {[%emt 0:01:41]} Qe5 {[%emt 0:02:59]} 30. Qc4 {[%emt 0:01:59]} Rd6 {[%emt 0:03:15]} 31. Qc3 {[%emt 0:04:47]} Kg7 {[%emt 0:00:55]} 32. Be2 {[%emt 0:00:45]} Rxd5 {[%emt 0:03:16]} 33. f4 {[%emt 0:00:26]} Qf6 {[%emt 0:00:55]} 34. g4 {[%emt 0:03:15]} Rxd4 {[%emt 0:01:35]} 35. exd4 {[%emt 0:00:10]} Ne6 {[%emt 0:00:10]} 36. g5 {[%emt 0:00:48]} Qxd4+ {[%emt 0:00:16]} 37. Qxd4+ {[%emt 0:00:32]} Nxd4 {[%emt 0:00:06]} 38. Bd3 {[%emt 0:00:51]} Ne6 {[%emt 0:00:14]} 39. f5 {[%emt 0:00:15]} Nxg5 0-1

[Event "FAI-ch Open 2021"]
[Site "Klaksvik"]
[Date "2021.03.29"]
[Round "3.7"]
[White "Petersen, Elias"]
[Black "Joensen, Henrik W."]
[Result "0-1"]
[ECO "A20"]
[WhiteElo "1403"]
[BlackElo "1535"]
[Annotator "NA RC"]
[PlyCount "62"]
[EventDate "2021.03.27"]
[EventType "swiss"]
[EventCountry "FAI"]
[SourceTitle "playchess.com"]
[Source "ChessBase"]
[SourceQuality "1"]
[TimeControl "40/5400+30:900+30"]

1. c4 {[%emt 0:00:00]} e5 {[%emt 0:09:23]} 2. g3 {[%emt 0:00:12]} Nf6 {[%emt 0:00:59]} 3. Bg2 {[%emt 0:00:13]} d5 {[%emt 0:00:57]} 4. cxd5 {[%emt 0:00:25]} Nxd5 {[%emt 0:00:10]} 5. Nc3 {[%emt 0:00:30]} Nxc3 {[%emt 0:03:39]} 6. bxc3 {[%emt 0:00:30]} Bc5 {[%emt 0:01:49]} 7. Ba3 {[%emt 0:05:05]} Qe7 {[%emt 0:04:28]} 8. Bxc5 {[%emt 0:01:54]} Qxc5 {[%emt 0:04:26]} 9. e3 {[%emt 0:02:07]} O-O {[%emt 0:01:00]} 10. Ne2 {[%emt 0:00:22]} Nc6 {[%emt 0:01:08]} 11. d4 {[%emt 0:00:58]} exd4 {[%emt 0:00:45]} 12. exd4 {[%emt 0:00:17]} Qa5 {[%emt 0:04:25]} 13. O-O {[%emt 0:01:15]} Bg4 {[%emt 0:02:39]} 14. f3 {[%emt 0:03:08]} Be6 {[%emt 0:02:36]} 15. Re1 {[%emt 0:01:56]} Bc4 {[%emt 0:01:50]} 16. Qc2 {[%emt 0:01:09]} Rfe8 {[%emt 0:03:38]} 17. Bf1 {[%emt 0:03:23]} Re3 {[%emt 0:02:40]} 18. Kf2 {[%emt 0:05:01]} Rae8 {[%emt 0:03:11]} 19. a3 {[%emt 0:02:59]} Qh5 {[%emt 0:02:35]} 20. Kg1 {[%emt 0:04:57]} Qxf3 {[%emt 0:07:24]} 21. Bg2 {[%emt 0:02:53]} Qh5 {[%emt 0:01:49]} 22. Bf1 {[%emt 0:02:12]} Bxe2 {[%emt 0:00:50]} 23. Qd2 {[%emt 0:01:07]} Qf3 {[%emt 0:05:45]} 24. Bg2 {[%emt 0:01:18]} Qg4 {[%emt 0:02:16]} 25. Bf1 {[%emt 0:02:25]} Qe4 {[%emt 0:04:07]} 26. Bg2 {[%emt 0:03:13]} Qd3 {[%emt 0:01:29]} 27. Qb2 {[%emt 0:01:22]} Bf3 {[%emt 0:02:55]} 28. Rxe3 {[%emt 0:03:17]} Qxe3+ {[%emt 0:00:45]} 29. Kf1 {[%emt 0:00:16]} Be2+ {[%emt 0:01:31]} 30. Ke1 {[%emt 0:00:28]} Bd3+ {[%emt 0:00:30]} 31. Kd1 {[%emt 0:00:05]} Qe1# {[%emt 0:00:28]} 0-1

[Event "FAI-ch Open 2021"]
[Site "Klaksvik"]
[Date "2021.03.30"]
[Round "4.1"]
[White "Christiansen, Esbern"]
[Black "Skaale, Janus"]
[Result "0-1"]
[ECO "B24"]
[WhiteElo "1775"]
[BlackElo "1809"]
[Annotator "NA RC"]
[PlyCount "60"]
[EventDate "2021.03.27"]
[EventType "swiss"]
[EventCountry "FAI"]
[SourceTitle "playchess.com"]
[Source "ChessBase"]
[SourceQuality "1"]
[TimeControl "40/5400+30:900+30"]

1. e4 {[%emt 0:00:01]} c5 {[%emt 0:00:00]} 2. Nc3 {[%emt 0:00:08]} Nc6 {[%emt 0:00:56]} 3. Bb5 {[%emt 0:00:19]} d6 {[%emt 0:00:40]} 4. Bxc6+ {[%emt 0:00:29]} bxc6 {[%emt 0:00:08]} 5. f4 {[%emt 0:01:37]} Nf6 {[%emt 0:03:29]} 6. Nf3 {[%emt 0:00:50]} g6 {[%emt 0:02:12]} 7. O-O {[%emt 0:00:21]} Bg7 {[%emt 0:00:06]} 8. d3 {[%emt 0:00:59]} Bg4 {[%emt 0:01:38]} 9. Qe1 {[%emt 0:01:02]} O-O {[%emt 0:05:44]} 10. Qh4 {[%emt 0:12:45]} Qd7 {[%emt 0:28:45]} 11. h3 {[%emt 0:07:07]} Bxf3 {[%emt 0:01:51]} 12. Rxf3 {[%emt 0:00:18]} e6 {[%emt 0:01:20]} 13. g4 {[%emt 0:07:55]} Rab8 {[%emt 0:06:07]} 14. f5 {[%emt 0:08:47]} exf5 {[%emt 0:02:05]} 15. Bh6 {[%emt 0:08:55]} Bxh6 {[%emt 0:24:35]} 16. Qxh6 {[%emt 0:01:33]} Qe7 {[%emt 0:02:23]} 17. gxf5 {[%emt 0:14:45]} Nd7 {[%emt 0:06:03]} 18. Raf1 {[%emt 0:00:49]} Qf6 {[%emt 0:01:03]} 19. Rg3 {[%emt 0:08:50]} Qg7 {[%emt 0:01:59]} ({Black should play} 19... Rxb2 $17 20. Qd2 Qh4) 20. Qe3 {[%emt 0:06:56]} (20. Qxg7+ $11 Kxg7 21. b3) 20... Rxb2 {[%emt 0:03:03]} 21. Ne2 {[%emt 0:04:10]} (21. Qd2 $17) 21... Rxc2 {[%emt 0:01:07]} 22. Qf3 {[%emt 0:02:02]} (22. d4 {is a better defense.}) 22... Qh6 {[%emt 0:05:10]} 23. Nf4 {[%emt 0:01:23]} Ne5 {[%emt 0:00:24]} 24. Qd1 {[%emt 0:00:35]} Rxa2 {[%emt 0:00:40]} 25. Nh5 $19 {[%emt 0:05:45]} Kh8 {[%emt 0:00:30]} 26. Nf6 {[%emt 0:01:19]} (26. Nf4 $142) 26... Qd2 {[%emt 0:00:23]} 27. Qxd2 {[%emt 0:01:56]} Rxd2 {[%emt 0:00:01]} 28. Rf4 {[%emt 0:01:38]} Rxd3 {[%emt 0:00:51]} 29. Rh4 {[%emt 0:00:42]} Rxg3+ {[%emt 0:00:34]} 30. Kh2 {[%emt 0:00:03]} h5 {[%emt 0:00:30]} 0-1

[Event "FAI-ch Open 2021"]
[Site "Klaksvik"]
[Date "2021.03.30"]
[Round "4.2"]
[White "Gregersen, Hedin"]
[Black "Tummasarson, Flovin M."]
[Result "1-0"]
[ECO "A05"]
[WhiteElo "1842"]
[BlackElo "1743"]
[Annotator "NA"]
[PlyCount "55"]
[EventDate "2021.03.27"]
[EventType "swiss"]
[EventCountry "FAI"]
[SourceTitle "playchess.com"]
[Source "ChessBase"]
[SourceQuality "1"]
[TimeControl "40/5400+30:900+30"]

1. Nf3 {[%emt 0:00:00]} Nf6 {[%emt 0:00:00]} 2. g3 {[%emt 0:00:08]} d5 {[%emt 0:04:21]} 3. Bg2 {[%emt 0:00:08]} c5 {[%emt 0:00:52]} 4. O-O {[%emt 0:00:13]} Nc6 {[%emt 0:00:57]} 5. c4 {[%emt 0:05:27]} e6 {[%emt 0:04:09]} 6. cxd5 {[%emt 0:01:15]} exd5 {[%emt 0:00:19]} 7. d4 {[%emt 0:04:27]} b6 {[%emt 0:05:03]} 8. Nc3 {[%emt 0:04:49]} Bb7 {[%emt 0:03:00]} 9. Bg5 {[%emt 0:03:20]} Be7 {[%emt 0:00:34]} 10. Bxf6 {[%emt 0:00:47]} Bxf6 {[%emt 0:00:31]} 11. dxc5 {[%emt 0:02:51]} Bxc3 {[%emt 0:00:31]} 12. bxc3 {[%emt 0:00:23]} bxc5 {[%emt 0:01:49]} 13. Rb1 {[%emt 0:04:28]} Qd7 {[%emt 0:06:06]} 14. Rxb7 {[%emt 0:09:08]} Qxb7 {[%emt 0:00:45]} 15. Qxd5 {[%emt 0:00:20]} Qd7 {[%emt 0:32:45]} 16. Qe4+ {[%emt 0:05:19]} Qe6 {[%emt 0:03:33]} 17. Ne5 {[%emt 0:01:38]} Nd8 {[%emt 0:01:46]} 18. Qa4+ {[%emt 0:02:52]} Ke7 {[%emt 0:02:41]} 19. Bxa8 {[%emt 0:04:06]} Qxe5 {[%emt 0:00:58]} 20. Qxa7+ {[%emt 0:00:35]} Kf6 {[%emt 0:00:42]} 21. Rd1 {[%emt 0:08:40]} Qxc3 {[%emt 0:15:11]} 22. Rd3 {[%emt 0:01:50]} Qc1+ {[%emt 0:05:14]} 23. Kg2 {[%emt 0:00:14]} g6 {[%emt 0:01:39]} 24. Qb8 {[%emt 0:01:16]} Kg7 {[%emt 0:05:07]} 25. Rxd8 {[%emt 0:01:12]} Rxd8 {[%emt 0:00:15]} 26. Qxd8 {[%emt 0:00:06]} c4 {[%emt 0:00:09]} 27. Qd4+ {[%emt 0:01:04]} Kf8 {[%emt 0:00:17]} 28. Bd5 {[%emt 0:00:16]} 1-0

[Event "FAI-ch Open 2021"]
[Site "Klaksvik"]
[Date "2021.03.30"]
[Round "4.3"]
[White "Gregersen, Einar"]
[Black "Joensen, Henrik W."]
[Result "0-1"]
[ECO "B32"]
[WhiteElo "1766"]
[BlackElo "1535"]
[Annotator "NA RC"]
[PlyCount "90"]
[EventDate "2021.03.27"]
[EventType "swiss"]
[EventCountry "FAI"]
[SourceTitle "playchess.com"]
[Source "ChessBase"]
[SourceQuality "1"]
[TimeControl "40/5400+30:900+30"]

1. e4 {[%emt 0:00:00]} c5 {[%emt 0:17:02]} 2. Nf3 {[%emt 0:00:00]} Nc6 {[%emt 0:00:10]} 3. d4 {[%emt 0:00:00]} cxd4 {[%emt 0:00:09]} 4. Nxd4 {[%emt 0:00:02]} e5 {[%emt 0:00:17]} 5. Nb5 {[%emt 0:00:12]} d6 {[%emt 0:00:27]} 6. N1c3 {[%emt 0:00:20]} a6 {[%emt 0:00:39]} 7. Na3 {[%emt 0:00:06]} b5 {[%emt 0:00:21]} 8. Nd5 {[%emt 0:00:14]} Nf6 {[%emt 0:00:38]} 9. c4 {[%emt 0:00:52]} b4 {[%emt 0:06:00]} 10. Nxf6+ {[%emt 0:00:10]} Qxf6 {[%emt 0:04:13]} 11. Nc2 {[%emt 0:00:13]} a5 {[%emt 0:04:35]} 12. Ne3 {[%emt 0:01:07]} Be6 {[%emt 0:07:30]} 13. Nd5 {[%emt 0:11:32]} Qd8 {[%emt 0:00:43]} 14. Be3 {[%emt 0:02:06]} Rb8 {[%emt 0:00:49]} 15. Bd3 {[%emt 0:03:59]} Be7 {[%emt 0:01:04]} 16. O-O {[%emt 0:00:55]} O-O {[%emt 0:00:32]} 17. b3 {[%emt 0:06:37]} Bg5 {[%emt 0:03:15]} 18. f4 {[%emt 0:10:37]} exf4 {[%emt 0:01:37]} 19. Bxf4 {[%emt 0:02:46]} Bxd5 {[%emt 0:15:51]} 20. exd5 {[%emt 0:02:49]} Bxf4 {[%emt 0:03:50]} 21. Rxf4 {[%emt 0:00:54]} Qg5 {[%emt 0:02:25]} 22. Rf3 {[%emt 0:05:36]} Ne5 {[%emt 0:02:38]} 23. Rg3 {[%emt 0:00:33]} Qf4 {[%emt 0:01:28]} 24. Kh1 {[%emt 0:06:11]} g6 {[%emt 0:02:33]} 25. Qc2 {[%emt 0:06:43]} Qd4 {[%emt 0:03:21]} 26. Rd1 {[%emt 0:05:18]} Qf4 {[%emt 0:03:47]} 27. c5 {[%emt 0:06:27]} dxc5 {[%emt 0:03:53]} 28. Qxc5 {[%emt 0:01:26]} Rbc8 {[%emt 0:01:35]} 29. Qe3 {[%emt 0:09:03]} Qxe3 {[%emt 0:00:44]} 30. Rxe3 {[%emt 0:00:08]} Ng4 {[%emt 0:00:37]} 31. Re2 {[%emt 0:01:23]} Rfe8 {[%emt 0:01:16]} 32. Kg1 {[%emt 0:04:16]} Rxe2 {[%emt 0:00:56]} 33. Bxe2 {[%emt 0:00:05]} Ne3 {[%emt 0:01:07]} 34. Rd3 {[%emt 0:01:43]} Rc3 {[%emt 0:00:41]} 35. Rd2 {[%emt 0:00:20]} Rc2 {[%emt 0:03:02]} 36. Rxc2 {[%emt 0:00:05]} Nxc2 {[%emt 0:00:17]} 37. Kf2 {[%emt 0:00:44]} Kf8 {[%emt 0:00:37]} 38. d6 {[%emt 0:02:04]} Nd4 {[%emt 0:01:43]} 39. Ke3 {[%emt 0:02:15]} Nxe2 {[%emt 0:02:00]} 40. Kxe2 {[%emt 0:00:00]} Ke8 {[%emt 0:00:00]} 41. Ke3 {[%emt 0:09:59]} Kd7 {[%emt 0:01:13]} 42. Kf4 {[%emt 0:00:26]} f6 {[%emt 0:01:24]} 43. g4 {[%emt 0:01:53]} Kxd6 {[%emt 0:00:32]} 44. g5 {[%emt 0:00:36]} Ke6 {[%emt 0:00:42]} 45. gxf6 {[%emt 0:02:14]} Kxf6 {[%emt 0:00:20]} 0-1

[Event "FAI-ch Open 2021"]
[Site "Klaksvik"]
[Date "2021.03.30"]
[Round "4.4"]
[White "Morkore, Rogvi"]
[Black "Hojgaard, Brandur"]
[Result "1-0"]
[ECO "C77"]
[WhiteElo "1685"]
[BlackElo "1720"]
[Annotator "NA RC"]
[PlyCount "59"]
[EventDate "2021.03.27"]
[EventType "swiss"]
[EventCountry "FAI"]
[SourceTitle "playchess.com"]
[Source "ChessBase"]
[SourceQuality "1"]
[TimeControl "40/5400+30:900+30"]

1. e4 {[%emt 0:00:00]} e5 {[%emt 0:00:00]} 2. Nf3 {[%emt 0:00:00]} Nc6 {[%emt 0:00:02]} 3. Bb5 {[%emt 0:00:15]} a6 {[%emt 0:00:12]} 4. Ba4 {[%emt 0:00:18]} Nf6 {[%emt 0:00:15]} 5. d3 {[%emt 0:00:30]} Bc5 {[%emt 0:01:12]} 6. O-O d6 {[%emt 0:00:40]} 7. c3 {[%emt 0:01:43]} b5 {[%emt 0:01:54]} 8. Bc2 {[%emt 0:00:47]} h6 {[%emt 0:01:26]} 9. Nbd2 {[%emt 0:03:03]} Bb6 {[%emt 0:01:02]} 10. h3 {[%emt 0:03:56]} O-O {[%emt 0:02:38]} 11. Re1 {[%emt 0:00:42]} Ne7 {[%emt 0:02:00]} 12. a4 {[%emt 0:07:21]} Bb7 {[%emt 0:01:51]} 13. Nf1 {[%emt 0:01:33]} Ng6 {[%emt 0:03:12]} 14. Ng3 {[%emt 0:05:04]} c5 {[%emt 0:06:02]} 15. Be3 {[%emt 0:18:17]} d5 {[%emt 0:14:31]} 16. Qc1 {[%emt 0:12:44]} dxe4 {[%emt 0:10:43]} 17. dxe4 {[%emt 0:00:33]} c4 {[%emt 0:05:31]} 18. Bxh6 {[%emt 0:13:09]} gxh6 {[%emt 0:24:32]} 19. Qxh6 {[%emt 0:00:06]} Bc8 {[%emt 0:04:29]} 20. Nf5 {[%emt 0:00:34]} Bxf5 {[%emt 0:01:38]} 21. exf5 {[%emt 0:00:05]} Nf4 {[%emt 0:03:57]} 22. Nxe5 {[%emt 0:01:05]} N4h5 {[%emt 0:10:54]} 23. g4 {[%emt 0:13:56]} Ng7 {[%emt 0:01:25]} 24. Rad1 {[%emt 0:03:15]} Qc7 {[%emt 0:00:36]} 25. Qxf6 {[%emt 0:00:41]} Qc5 {[%emt 0:00:39]} 26. Qh4 {[%emt 0:01:43]} f6 {[%emt 0:00:23]} 27. Nd7 {[%emt 0:00:51]} Qc6 {[%emt 0:00:34]} 28. Be4 {[%emt 0:01:58]} Qc7 {[%emt 0:00:28]} 29. Bd5+ {[%emt 0:00:49]} Rf7 {[%emt 0:00:14]} 30. Nxf6+ {[%emt 0:00:22]} 1-0

[Event "FAI-ch Open 2021"]
[Site "Klaksvik"]
[Date "2021.03.30"]
[Round "4.5"]
[White "Joensen, Jakup F."]
[Black "Danielsen, Andrias"]
[Result "1/2-1/2"]
[ECO "B46"]
[WhiteElo "1690"]
[BlackElo "1911"]
[Annotator "NA"]
[PlyCount "43"]
[EventDate "2021.03.27"]
[EventType "swiss"]
[EventCountry "FAI"]
[SourceTitle "playchess.com"]
[Source "ChessBase"]
[SourceQuality "1"]
[TimeControl "40/5400+30:900+30"]

1. e4 {[%emt 0:00:00]} c5 {[%emt 0:01:19]} 2. Nf3 {[%emt 0:00:00]} e6 {[%emt 0:00:58]} 3. d4 {[%emt 0:00:08]} cxd4 {[%emt 0:00:11]} 4. Nxd4 {[%emt 0:00:10]} Nc6 {[%emt 0:01:18]} 5. Nc3 {[%emt 0:00:54]} a6 {[%emt 0:01:43]} 6. Be3 {[%emt 0:02:13]} Qc7 {[%emt 0:00:51]} 7. h3 {[%emt 0:03:15]} Nf6 {[%emt 0:00:21]} 8. g4 {[%emt 0:03:53]} Bb4 {[%emt 0:07:04]} 9. Bg2 {[%emt 0:06:04]} d5 {[%emt 0:12:07]} 10. exd5 {[%emt 0:06:07]} Nxd5 {[%emt 0:00:10]} 11. Bxd5 {[%emt 0:01:34]} exd5 {[%emt 0:00:09]} 12. O-O {[%emt 0:05:21]} Bxc3 {[%emt 0:01:26]} 13. bxc3 {[%emt 0:00:22]} O-O {[%emt 0:00:20]} 14. Qd2 {[%emt 0:03:35]} Na5 {[%emt 0:06:14]} 15. Bf4 {[%emt 0:05:55]} Qd8 {[%emt 0:05:45]} 16. Rfe1 {[%emt 0:01:26]} Nc4 {[%emt 0:00:32]} 17. Qe2 {[%emt 0:05:42]} Qh4 {[%emt 0:02:27]} 18. Kg2 {[%emt 0:05:28]} Bd7 {[%emt 0:03:31]} 19. Qe7 {[%emt 0:04:16]} Qxe7 {[%emt 0:01:47]} 20. Rxe7 {[%emt 0:00:02]} Bc6 {[%emt 0:03:13]} 21. Rae1 {[%emt 0:02:57]} Rac8 {[%emt 0:03:20]} 22. f3 1/2-1/2

[Event "FAI-ch Open 2021"]
[Site "Klaksvik"]
[Date "2021.03.30"]
[Round "4.6"]
[White "Bertholdsen, Bjarki"]
[Black "Olsen, Kaj"]
[Result "0-1"]
[ECO "C47"]
[WhiteElo "1353"]
[BlackElo "1677"]
[Annotator "NA RC"]
[PlyCount "56"]
[EventDate "2021.03.27"]
[EventType "swiss"]
[EventCountry "FAI"]
[SourceTitle "playchess.com"]
[Source "ChessBase"]
[SourceQuality "1"]
[TimeControl "40/5400+30:900+30"]

1. e4 {[%emt 0:00:00]} e5 {[%emt 0:00:00]} 2. Nf3 {[%emt 0:00:18]} Nf6 {[%emt 0:00:00]} 3. Nc3 {[%emt 0:01:02]} Nc6 {[%emt 0:00:18]} 4. Bc4 {[%emt 0:01:39]} Nxe4 {[%emt 0:00:25]} 5. Nxe4 {[%emt 0:04:01]} d5 {[%emt 0:00:14]} 6. Bxd5 {[%emt 0:01:20]} Qxd5 {[%emt 0:00:31]} 7. d3 {[%emt 0:03:53]} Bg4 {[%emt 0:07:38]} 8. Be3 {[%emt 0:18:11]} f5 {[%emt 0:09:04]} 9. Nc3 {[%emt 0:09:58]} Bb4 {[%emt 0:00:13]} 10. O-O {[%emt 0:08:02]} Bxc3 {[%emt 0:00:21]} 11. bxc3 {[%emt 0:00:08]} O-O-O {[%emt 0:19:41]} 12. a4 {[%emt 0:17:45]} Rhe8 {[%emt 0:04:01]} 13. h3 {[%emt 0:04:47]} Bh5 {[%emt 0:01:54]} 14. Kh2 {[%emt 0:04:47]} e4 {[%emt 0:02:51]} 15. dxe4 {[%emt 0:03:30]} Qxe4 {[%emt 0:04:31]} 16. Qc1 {[%emt 0:06:39]} Bxf3 {[%emt 0:00:29]} 17. gxf3 {[%emt 0:00:13]} Qxf3 {[%emt 0:00:18]} 18. Ra3 {[%emt 0:01:53]} Re6 {[%emt 0:09:54]} 19. c4 {[%emt 0:02:24]} Qe4 {[%emt 0:03:28]} 20. c5 {[%emt 0:01:15]} Nd4 {[%emt 0:01:49]} 21. Bg5 {[%emt 0:02:23]} Rg6 {[%emt 0:02:44]} 22. Qf4 {[%emt 0:03:08]} Qxf4+ {[%emt 0:01:33]} 23. Bxf4 {[%emt 0:00:04]} Nxc2 {[%emt 0:00:37]} 24. Ra2 {[%emt 0:00:52]} Nd4 {[%emt 0:00:23]} 25. f3 {[%emt 0:00:16]} Ne6 {[%emt 0:01:03]} 26. Be3 {[%emt 0:00:29]} Rd3 {[%emt 0:01:09]} 27. Re1 {[%emt 0:01:26]} f4 {[%emt 0:02:19]} 28. Bf2 {[%emt 0:00:41]} Ng5 {[%emt 0:01:22]} 0-1

[Event "FAI-ch Open 2021"]
[Site "Klaksvik"]
[Date "2021.03.31"]
[Round "5.1"]
[White "Skaale, Janus"]
[Black "Gregersen, Hedin"]
[Result "1-0"]
[ECO "B07"]
[WhiteElo "1809"]
[BlackElo "1842"]
[Annotator "NA RC"]
[PlyCount "61"]
[EventDate "2021.03.27"]
[EventType "swiss"]
[EventCountry "FAI"]
[SourceTitle "playchess.com"]
[Source "ChessBase"]
[SourceQuality "1"]
[TimeControl "40/5400+30:900+30"]

1. e4 {[%emt 0:00:00]} d6 {[%emt 0:00:00]} 2. d4 {[%emt 0:00:00]} Nf6 {[%emt 0:00:00]} 3. Nc3 {[%emt 0:00:27]} g6 {[%emt 0:00:00]} 4. Be3 {[%emt 0:00:46]} a6 {[%emt 0:00:03]} 5. h3 {[%emt 0:01:26]} Bg7 {[%emt 0:03:02]} 6. f4 {[%emt 0:01:14]} b5 {[%emt 0:03:09]} 7. e5 {[%emt 0:01:52]} dxe5 {[%emt 0:06:49]} 8. dxe5 {[%emt 0:01:50]} Nfd7 {[%emt 0:02:44]} 9. Qf3 {[%emt 0:22:21]} c6 {[%emt 0:01:40]} 10. Bd3 {[%emt 0:02:19]} Bb7 {[%emt 0:18:10]} 11. Nge2 {[%emt 0:09:19]} Nb6 {[%emt 0:09:19]} 12. O-O-O {[%emt 0:09:57]} Qc7 {[%emt 0:08:29]} 13. Be4 {[%emt 0:01:10]} O-O {[%emt 0:15:43]} 14. Nd4 {[%emt 0:07:52]} Nc4 {[%emt 0:01:24]} 15. Bf2 {[%emt 0:01:27]} a5 {[%emt 0:02:13]} 16. Ndxb5 {[%emt 0:01:31]} Qc8 {[%emt 0:08:47]} 17. b3 {[%emt 0:03:32]} Nxe5 {[%emt 0:02:20]} 18. fxe5 {[%emt 0:00:53]} Nd7 {[%emt 0:00:18]} 19. Nd4 {[%emt 0:08:44]} Nxe5 {[%emt 0:00:38]} 20. Qe3 {[%emt 0:02:57]} a4 {[%emt 0:01:50]} 21. Nxa4 {[%emt 0:01:48]} Nc4 {[%emt 0:07:32]} 22. Qe2 {[%emt 0:02:02]} Bh6+ {[%emt 0:01:42]} 23. Kb1 {[%emt 0:00:31]} Rxa4 {[%emt 0:00:11]} 24. bxa4 {[%emt 0:00:26]} Ba6 {[%emt 0:01:19]} 25. Bd3 {[%emt 0:01:23]} Qb7+ {[%emt 0:00:25]} 26. Nb3 {[%emt 0:00:16]} Na3+ {[%emt 0:01:14]} 27. Kb2 {[%emt 0:00:59]} Bg7+ {[%emt 0:00:12]} 28. Kxa3 {[%emt 0:06:25]} Bc3 {[%emt 0:03:09]} 29. Bc5 {[%emt 0:00:28]} Ra8 {[%emt 0:00:35]} 30. Bxa6 {[%emt 0:01:10]} Rxa6 {[%emt 0:00:11]} 31. Qc4 {[%emt 0:00:28]} 1-0

[Event "FAI-ch Open 2021"]
[Site "Klaksvik"]
[Date "2021.03.31"]
[Round "5.2"]
[White "Joensen, Henrik W."]
[Black "Morkore, Rogvi"]
[Result "1-0"]
[ECO "C01"]
[WhiteElo "1535"]
[BlackElo "1685"]
[Annotator "NA RC"]
[PlyCount "93"]
[EventDate "2021.03.27"]
[EventType "swiss"]
[EventCountry "FAI"]
[SourceTitle "playchess.com"]
[Source "ChessBase"]
[SourceQuality "1"]
[TimeControl "40/5400+30:900+30"]

1. e4 {[%emt 0:01:08]} e6 {[%emt 0:00:00]} 2. d4 {[%emt 0:00:10]} d5 {[%emt 0:00:00]} 3. exd5 {[%emt 0:01:17]} exd5 {[%emt 0:00:00]} 4. c4 {[%emt 0:00:32]} Nf6 {[%emt 0:00:25]} 5. Nf3 {[%emt 0:00:26]} Bb4+ {[%emt 0:01:29]} 6. Nc3 {[%emt 0:06:14]} O-O {[%emt 0:00:50]} 7. Be2 {[%emt 0:01:26]} dxc4 {[%emt 0:03:13]} 8. O-O {[%emt 0:01:28]} Nc6 {[%emt 0:03:26]} 9. Bxc4 {[%emt 0:04:54]} Bg4 {[%emt 0:00:42]} 10. a3 {[%emt 0:16:28]} Bxf3 {[%emt 0:13:47]} 11. gxf3 {[%emt 0:08:20]} Bd6 {[%emt 0:05:02]} 12. f4 {[%emt 0:07:37]} Qd7 {[%emt 0:03:55]} 13. f3 {[%emt 0:12:13]} Rad8 {[%emt 0:05:52]} 14. Ne4 {[%emt 0:03:59]} Nxe4 {[%emt 0:02:37]} 15. fxe4 {[%emt 0:00:24]} Bc5 {[%emt 0:01:36]} 16. Be3 {[%emt 0:00:49]} Bxd4 {[%emt 0:01:22]} 17. Bxd4 {[%emt 0:04:16]} Qxd4+ {[%emt 0:02:36]} 18. Qxd4 {[%emt 0:00:16]} Nxd4 {[%emt 0:00:59]} 19. Rac1 {[%emt 0:02:27]} c5 {[%emt 0:11:22]} 20. Kf2 {[%emt 0:03:58]} Rfe8 {[%emt 0:04:43]} 21. Bd5 {[%emt 0:02:23]} b6 {[%emt 0:00:12]} 22. Rfd1 {[%emt 0:05:04]} Rb8 {[%emt 0:15:41]} 23. b4 {[%emt 0:01:18]} Rec8 {[%emt 0:00:23]} 24. a4 {[%emt 0:01:21]} Kf8 {[%emt 0:02:18]} 25. Ke3 {[%emt 0:01:33]} Ke7 {[%emt 0:01:18]} 26. f5 {[%emt 0:01:37]} g6 {[%emt 0:02:08]} 27. fxg6 {[%emt 0:00:22]} hxg6 {[%emt 0:00:18]} 28. e5 {[%emt 0:01:34]} Nf5+ {[%emt 0:02:00]} 29. Kf4 {[%emt 0:01:37]} cxb4 {[%emt 0:00:33]} 30. Rb1 {[%emt 0:01:59]} a5 {[%emt 0:01:17]} 31. Re1 {[%emt 0:01:05]} Rc2 {[%emt 0:01:16]} 32. e6 {[%emt 0:01:25]} f6 {[%emt 0:02:09]} 33. Rg1 {[%emt 0:00:53]} Rf2+ {[%emt 0:01:29]} 34. Ke4 {[%emt 0:00:27]} Rh8 {[%emt 0:01:40]} 35. Bb3 {[%emt 0:01:45]} Rh4+ {[%emt 0:02:13]} 36. Kd5 {[%emt 0:00:22]} Rd2+ {[%emt 0:00:52]} 37. Kc6 {[%emt 0:00:51]} Rd6+ {[%emt 0:00:47]} 38. Kb7 {[%emt 0:00:56]} g5 {[%emt 0:05:22]} 39. Rbc1 {[%emt 0:00:18]} Rh8 {[%emt 0:01:48]} 40. Rc7+ {[%emt 0:00:00]} Kf8 {[%emt 0:00:00]} 41. Rf1 {[%emt 0:04:59]} Ne7 {[%emt 0:12:30]} 42. Rxf6+ {[%emt 0:00:42]} Ke8 {[%emt 0:00:16]} 43. Rf7 {[%emt 0:02:08]} Nd5 {[%emt 0:01:25]} 44. Rc8+ {[%emt 0:01:20]} Rd8 {[%emt 0:00:03]} 45. Bxd5 {[%emt 0:01:58]} Rxc8 {[%emt 0:00:23]} 46. Kxc8 {[%emt 0:00:19]} Rh7 {[%emt 0:00:28]} 47. Bc6# 1-0